[Event "Titled Tuesday Blitz July 27 2021"]
[White "Fakhrutdinov, Timur"]
[Black "Ivanov, Oleg"]
[WhiteFideId "24176702"]
[BlackFideId "4103114"]
[WhiteElo "2405"]
[BlackElo "2762"]
[Result "0-1"]
[Round "08"]
[TimeControl "180+1"]
[Date "2021.07.27"]
[WhiteClock "0:00:05"]
[BlackClock "0:00:38"]

1. e4 {[%clk 0:02:59]}  d5 {[%clk 0:02:59]} 2. exd5 {[%clk 0:02:59]}  Qxd5 {[%clk 0:03:00]} 3. Nc3 {[%clk 0:03:00]}  Qd6 {[%clk 0:03:00]} 4. d4 {[%clk 0:03:00]}  Nf6 {[%clk 0:03:00]} 5. Nf3 {[%clk 0:02:53]}  c6 {[%clk 0:02:59]} 6. g3 {[%clk 0:02:52]}  Bg4 {[%clk 0:03:00]} 7. Bg2 {[%clk 0:02:53]}  e6 {[%clk 0:03:00]} 8. O-O {[%clk 0:02:53]}  Be7 {[%clk 0:03:00]} 9. Ne2 {[%clk 0:02:43]}  O-O {[%clk 0:02:55]} 10. h3 {[%clk 0:02:42]}  Bxf3 {[%clk 0:02:54]} 11. Bxf3 {[%clk 0:02:42]}  Qc7 {[%clk 0:02:50]} 12. c3 {[%clk 0:02:28]}  Nbd7 {[%clk 0:02:50]} 13. Nf4 {[%clk 0:02:23]}  e5 {[%clk 0:02:46]} 14. dxe5 {[%clk 0:02:23]}  Nxe5 {[%clk 0:02:47]} 15. Bg2 {[%clk 0:02:23]}  Rad8 {[%clk 0:02:43]} 16. Qc2 {[%clk 0:02:23]}  Bc5 {[%clk 0:02:41]} 17. Re1 {[%clk 0:02:04]}  Rfe8 {[%clk 0:02:36]} 18. Be3 {[%clk 0:02:03]}  Bxe3 {[%clk 0:02:31]} 19. Rxe3 {[%clk 0:02:04]}  Nc4 {[%clk 0:02:26]} 20. Rxe8+ {[%clk 0:02:03]}  Rxe8 {[%clk 0:02:27]} 21. b3 {[%clk 0:02:00]}  Na3 {[%clk 0:02:21]} 22. Qd2 {[%clk 0:01:44]}  Nb5 {[%clk 0:02:18]} 23. a4 {[%clk 0:01:37]}  Nd6 {[%clk 0:02:15]} 24. Re1 {[%clk 0:01:36]}  Rxe1+ {[%clk 0:02:06]} 25. Qxe1 {[%clk 0:01:37]}  Kf8 {[%clk 0:02:05]} 26. Nd3 {[%clk 0:01:31]}  b6 {[%clk 0:01:58]} 27. Qe5 {[%clk 0:01:21]}  c5 {[%clk 0:01:42]} 28. Nf4 {[%clk 0:00:57]}  Qe7 {[%clk 0:01:39]} 29. Qxe7+ {[%clk 0:00:28]}  Kxe7 {[%clk 0:01:39]} 30. Kf1 {[%clk 0:00:27]}  g5 {[%clk 0:01:32]} 31. Ne2 {[%clk 0:00:24]}  Nd7 {[%clk 0:01:18]} 32. f4 {[%clk 0:00:20]}  f6 {[%clk 0:01:17]} 33. Kf2 {[%clk 0:00:20]}  Ke6 {[%clk 0:01:15]} 34. Ke3 {[%clk 0:00:18]}  h6 {[%clk 0:01:11]} 35. Kd3 {[%clk 0:00:16]}  c4+ {[%clk 0:01:07]} 36. bxc4 {[%clk 0:00:12]}  Nc5+ {[%clk 0:01:07]} 37. Kd4 {[%clk 0:00:13]}  Nxa4 {[%clk 0:01:04]} 38. Bd5+ {[%clk 0:00:13]}  Ke7 {[%clk 0:01:03]} 39. g4 {[%clk 0:00:12]}  Nc5 {[%clk 0:01:02]} 40. fxg5 {[%clk 0:00:12]}  hxg5 {[%clk 0:01:00]} 41. Ng3 {[%clk 0:00:12]}  a5 {[%clk 0:00:59]} 42. Ke3 {[%clk 0:00:12]}  a4 {[%clk 0:00:57]} 43. Kd2 {[%clk 0:00:13]}  Nb3+ {[%clk 0:00:40]} 44. Kc2 {[%clk 0:00:13]}  Na5 {[%clk 0:00:41]} 45. Ne2 {[%clk 0:00:05]}  Naxc4 {[%clk 0:00:39]} 46. Nd4 {[%clk 0:00:05]}  Ne3+ {[%clk 0:00:38]} 0-1


[Site "https://www.chess.com"]

[Event "Titled Tuesday Blitz July 27 2021"]
[White "Gabrielian, Artur"]
[Black "Stoyanov, Tsvetan"]
[WhiteFideId "4131002"]
[BlackFideId "2917173"]
[WhiteElo "2523"]
[BlackElo "2198"]
[Result "1-0"]
[Round "08"]
[TimeControl "180+1"]
[Date "2021.07.27"]
[WhiteClock "0:00:21"]
[BlackClock "0:00:04"]

1. d4 {[%clk 0:03:00]}  Nf6 {[%clk 0:02:38]} 2. c4 {[%clk 0:03:00]}  e6 {[%clk 0:02:38]} 3. Nc3 {[%clk 0:02:59]}  d5 {[%clk 0:02:39]} 4. cxd5 {[%clk 0:02:58]}  Nxd5 {[%clk 0:02:39]} 5. Nf3 {[%clk 0:02:56]}  Nxc3 {[%clk 0:02:37]} 6. bxc3 {[%clk 0:02:56]}  c5 {[%clk 0:02:38]} 7. e3 {[%clk 0:02:56]}  Nc6 {[%clk 0:02:37]} 8. Bd3 {[%clk 0:02:55]}  Bd6 {[%clk 0:02:36]} 9. O-O {[%clk 0:02:55]}  h6 {[%clk 0:02:37]} 10. Bc2 {[%clk 0:02:51]}  b6 {[%clk 0:02:30]} 11. Nd2 {[%clk 0:02:45]}  Bb7 {[%clk 0:02:29]} 12. Qg4 {[%clk 0:02:43]}  Qc7 {[%clk 0:02:18]} 13. Nf3 {[%clk 0:02:31]}  O-O-O {[%clk 0:02:15]} 14. a4 {[%clk 0:02:27]}  g5 {[%clk 0:02:04]} 15. a5 {[%clk 0:02:19]}  h5 {[%clk 0:01:58]} 16. Qxg5 {[%clk 0:02:13]}  Rdg8 {[%clk 0:01:46]} 17. axb6 {[%clk 0:02:12]}  axb6 {[%clk 0:01:41]} 18. Qf6 {[%clk 0:02:09]}  Bxh2+ {[%clk 0:01:10]} 19. Kh1 {[%clk 0:01:57]}  Bd6 {[%clk 0:01:09]} 20. dxc5 {[%clk 0:01:52]}  Bxc5 {[%clk 0:01:08]} 21. Be4 {[%clk 0:01:42]}  h4 {[%clk 0:01:06]} 22. Rd1 {[%clk 0:01:24]}  h3 {[%clk 0:01:01]} 23. g3 {[%clk 0:01:25]}  Ne7 {[%clk 0:00:42]} 24. Bxb7+ {[%clk 0:01:09]}  Qxb7 {[%clk 0:00:42]} 25. Qxf7 {[%clk 0:01:08]}  Qe4 {[%clk 0:00:35]} 26. Qf4 {[%clk 0:01:01]}  Qc6 {[%clk 0:00:21]} 27. e4 {[%clk 0:00:45]}  Rf8 {[%clk 0:00:20]} 28. Qe5 {[%clk 0:00:36]}  Ng6 {[%clk 0:00:16]} 29. Qg7 {[%clk 0:00:35]}  Rxf3 {[%clk 0:00:13]} 30. Qxg6 {[%clk 0:00:33]}  Rxf2 {[%clk 0:00:12]} 31. Bf4 {[%clk 0:00:32]}  Rxf4 {[%clk 0:00:09]} 32. gxf4 {[%clk 0:00:32]}  Be7 {[%clk 0:00:06]} 33. Ra7 {[%clk 0:00:29]}  Rd8 {[%clk 0:00:03]} 34. Rxd8+ {[%clk 0:00:28]}  Bxd8 {[%clk 0:00:04]} 35. Kh2 {[%clk 0:00:23]}  Qc4 {[%clk 0:00:03]} 36. Ra8+ {[%clk 0:00:19]}  Kb7 {[%clk 0:00:03]} 37. Rxd8 {[%clk 0:00:19]}  Qe2+ {[%clk 0:00:03]} 38. Kxh3 {[%clk 0:00:20]}  Qf3+ {[%clk 0:00:04]} 39. Qg3 {[%clk 0:00:20]}  Qh5+ {[%clk 0:00:04]} 40. Kg2 {[%clk 0:00:20]}  Qe2+ {[%clk 0:00:04]} 41. Qf2 {[%clk 0:00:21]}  Qg4+ {[%clk 0:00:03]} 42. Kf1 {[%clk 0:00:21]}  Qh3+ {[%clk 0:00:04]} 43. Ke2 {[%clk 0:00:21]}  Qh5+ {[%clk 0:00:04]} 44. Kd2 {[%clk 0:00:21]} 1-0


[Site "https://www.chess.com"]

[Event "Titled Tuesday Blitz July 27 2021"]
[White "Goncalves, Ivan Mesquita V"]
[Black "Bok, Benjamin"]
[WhiteFideId "2114224"]
[BlackFideId "1017063"]
[WhiteElo "2299"]
[BlackElo "2658"]
[Result "0-1"]
[Round "08"]
[TimeControl "180+1"]
[Date "2021.07.27"]
[WhiteClock "0:00:14"]
[BlackClock "0:01:28"]

1. d4 {[%clk 0:02:58]}  Nf6 {[%clk 0:02:59]} 2. Nf3 {[%clk 0:02:59]}  d5 {[%clk 0:03:00]} 3. Bf4 {[%clk 0:02:59]}  c5 {[%clk 0:03:00]} 4. e3 {[%clk 0:02:59]}  Nc6 {[%clk 0:03:00]} 5. Nbd2 {[%clk 0:03:00]}  Qb6 {[%clk 0:03:01]} 6. dxc5 {[%clk 0:02:59]}  Qxb2 {[%clk 0:03:01]} 7. Rb1 {[%clk 0:03:00]}  Qc3 {[%clk 0:03:01]} 8. Bb5 {[%clk 0:02:59]}  g6 {[%clk 0:03:01]} 9. Be5 {[%clk 0:01:55]}  Qxc5 {[%clk 0:02:59]} 10. Bxf6 {[%clk 0:01:50]}  exf6 {[%clk 0:02:59]} 11. O-O {[%clk 0:01:50]}  Bg7 {[%clk 0:02:58]} 12. Qe2 {[%clk 0:01:41]}  O-O {[%clk 0:02:55]} 13. Nb3 {[%clk 0:01:41]}  Qa3 {[%clk 0:02:54]} 14. Rfd1 {[%clk 0:01:36]}  a6 {[%clk 0:02:33]} 15. Bxc6 {[%clk 0:01:16]}  bxc6 {[%clk 0:02:34]} 16. Nfd4 {[%clk 0:01:13]}  Bd7 {[%clk 0:02:29]} 17. c4 {[%clk 0:01:13]}  c5 {[%clk 0:01:58]} 18. Nc2 {[%clk 0:01:04]}  Qxa2 {[%clk 0:01:58]} 19. cxd5 {[%clk 0:00:39]}  Rab8 {[%clk 0:01:49]} 20. Ncd4 {[%clk 0:00:25]}  Qxe2 {[%clk 0:01:39]} 21. Nxe2 {[%clk 0:00:26]}  Bf5 {[%clk 0:01:39]} 22. Rb2 {[%clk 0:00:15]}  c4 {[%clk 0:01:37]} 23. e4 {[%clk 0:00:14]}  Bxe4 {[%clk 0:01:28]} 0-1


[Site "https://www.chess.com"]

[Event "Titled Tuesday Blitz July 27 2021"]
[White "Gubanov, Oleg"]
[Black "Eternauta2400"]
[WhiteFideId "14115115"]
[WhiteElo "2251"]
[BlackElo "2524"]
[Result "1-0"]
[Round "08"]
[TimeControl "180+1"]
[Date "2021.07.27"]
[WhiteClock "0:00:10"]
[BlackClock "0:01:00"]

1. e4 {[%clk 0:03:00]}  e5 {[%clk 0:03:00]} 2. Bc4 {[%clk 0:02:59]}  Nf6 {[%clk 0:02:59]} 3. d3 {[%clk 0:02:59]}  Bc5 {[%clk 0:02:57]} 4. Nf3 {[%clk 0:02:59]}  Nc6 {[%clk 0:02:55]} 5. c3 {[%clk 0:02:58]}  O-O {[%clk 0:02:53]} 6. O-O {[%clk 0:02:57]}  h6 {[%clk 0:02:52]} 7. h3 {[%clk 0:02:57]}  d6 {[%clk 0:02:52]} 8. a4 {[%clk 0:02:57]}  a5 {[%clk 0:02:51]} 9. Be3 {[%clk 0:02:49]}  Bxe3 {[%clk 0:02:50]} 10. fxe3 {[%clk 0:02:50]}  Ne7 {[%clk 0:02:50]} 11. Qe1 {[%clk 0:02:45]}  Ng6 {[%clk 0:02:49]} 12. Nbd2 {[%clk 0:02:43]}  c6 {[%clk 0:02:48]} 13. Ba2 {[%clk 0:02:34]}  d5 {[%clk 0:02:47]} 14. exd5 {[%clk 0:02:20]}  cxd5 {[%clk 0:02:46]} 15. Qg3 {[%clk 0:02:18]}  Qe7 {[%clk 0:02:43]} 16. Rae1 {[%clk 0:02:10]}  Bd7 {[%clk 0:02:40]} 17. e4 {[%clk 0:02:08]}  dxe4 {[%clk 0:02:35]} 18. Nxe4 {[%clk 0:02:07]}  Nxe4 {[%clk 0:02:35]} 19. Rxe4 {[%clk 0:02:07]}  Rae8 {[%clk 0:02:34]} 20. Qxg6 {[%clk 0:02:03]}  Kh8 {[%clk 0:02:31]} 21. Qg3 {[%clk 0:01:55]}  Qc5+ {[%clk 0:02:25]} 22. Qf2 {[%clk 0:01:49]}  Qd6 {[%clk 0:02:24]} 23. d4 {[%clk 0:01:24]}  exd4 {[%clk 0:02:18]} 24. Rxe8 {[%clk 0:01:19]}  Bxe8 {[%clk 0:02:17]} 25. Qxd4 {[%clk 0:01:19]}  Qe7 {[%clk 0:02:07]} 26. Re1 {[%clk 0:01:04]}  Qc7 {[%clk 0:02:06]} 27. Ne5 {[%clk 0:01:01]}  f6 {[%clk 0:02:04]} 28. Nf3 {[%clk 0:00:57]}  Bg6 {[%clk 0:02:03]} 29. Kh1 {[%clk 0:00:40]}  Rd8 {[%clk 0:02:03]} 30. Qg4 {[%clk 0:00:39]}  Kh7 {[%clk 0:01:58]} 31. Nh4 {[%clk 0:00:37]}  Bc2 {[%clk 0:01:56]} 32. Bb1 {[%clk 0:00:35]}  Bxb1 {[%clk 0:01:54]} 33. Rxb1 {[%clk 0:00:35]}  Qf7 {[%clk 0:01:52]} 34. Re1 {[%clk 0:00:30]}  Rd5 {[%clk 0:01:44]} 35. Qe4+ {[%clk 0:00:28]}  Kg8 {[%clk 0:01:44]} 36. Qe8+ {[%clk 0:00:26]}  Qxe8 {[%clk 0:01:43]} 37. Rxe8+ {[%clk 0:00:27]}  Kf7 {[%clk 0:01:42]} 38. Rb8 {[%clk 0:00:26]}  Rd7 {[%clk 0:01:32]} 39. Kg1 {[%clk 0:00:26]}  Ke6 {[%clk 0:01:31]} 40. Nf3 {[%clk 0:00:26]}  Kd5 {[%clk 0:01:31]} 41. Rc8 {[%clk 0:00:24]}  g5 {[%clk 0:01:28]} 42. Kf2 {[%clk 0:00:24]}  h5 {[%clk 0:01:27]} 43. Ke3 {[%clk 0:00:24]}  g4 {[%clk 0:01:26]} 44. hxg4 {[%clk 0:00:24]}  hxg4 {[%clk 0:01:27]} 45. Nd2 {[%clk 0:00:25]}  Rh7 {[%clk 0:01:25]} 46. Rf8 {[%clk 0:00:24]}  Ke5 {[%clk 0:01:24]} 47. Re8+ {[%clk 0:00:23]}  Kf5 {[%clk 0:01:24]} 48. Rb8 {[%clk 0:00:22]}  Rh2 {[%clk 0:01:21]} 49. Rxb7 {[%clk 0:00:22]}  Rxg2 {[%clk 0:01:22]} 50. Rb5+ {[%clk 0:00:22]}  Kg6 {[%clk 0:01:21]} 51. Rxa5 {[%clk 0:00:22]}  f5 {[%clk 0:01:20]} 52. Nc4 {[%clk 0:00:17]}  Rg3+ {[%clk 0:01:15]} 53. Kf2 {[%clk 0:00:17]}  Rh3 {[%clk 0:01:11]} 54. Nd6 {[%clk 0:00:16]}  f4 {[%clk 0:01:10]} 55. Ne4 {[%clk 0:00:16]}  Rh2+ {[%clk 0:01:09]} 56. Kg1 {[%clk 0:00:17]}  g3 {[%clk 0:01:09]} 57. Nxg3 {[%clk 0:00:15]}  fxg3 {[%clk 0:01:08]} 58. b4 {[%clk 0:00:15]}  Ra2 {[%clk 0:01:01]} 59. b5 {[%clk 0:00:10]}  Kf6 {[%clk 0:01:00]} 60. b6 {[%clk 0:00:10]}  Ke7 {[%clk 0:01:00]} 61. b7 {[%clk 0:00:10]} 1-0


[Site "https://www.chess.com"]

[Event "Titled Tuesday Blitz July 27 2021"]
[White "Hasangatin, Ramil"]
[Black "Chernomordik, Pavel"]
[WhiteFideId "4122160"]
[BlackFideId "2804530"]
[WhiteElo "2375"]
[BlackElo "2273"]
[Result "1-0"]
[Round "08"]
[TimeControl "180+1"]
[Date "2021.07.27"]
[WhiteClock "0:01:54"]
[BlackClock "0:01:29"]

1. e4 {[%clk 0:03:00]}  g6 {[%clk 0:03:00]} 2. d4 {[%clk 0:03:00]}  Bg7 {[%clk 0:03:00]} 3. Nc3 {[%clk 0:03:01]}  d6 {[%clk 0:03:00]} 4. Nf3 {[%clk 0:03:00]}  a6 {[%clk 0:03:00]} 5. a4 {[%clk 0:02:59]}  b6 {[%clk 0:03:00]} 6. Bd3 {[%clk 0:02:56]}  Bb7 {[%clk 0:02:57]} 7. O-O {[%clk 0:02:55]}  e6 {[%clk 0:02:56]} 8. Bg5 {[%clk 0:02:54]}  Ne7 {[%clk 0:02:55]} 9. Re1 {[%clk 0:02:53]}  h6 {[%clk 0:02:55]} 10. Be3 {[%clk 0:02:53]}  O-O {[%clk 0:02:52]} 11. Qd2 {[%clk 0:02:53]}  Kh7 {[%clk 0:02:51]} 12. Rad1 {[%clk 0:02:53]}  Nd7 {[%clk 0:02:50]} 13. h3 {[%clk 0:02:52]}  c5 {[%clk 0:02:47]} 14. Bf1 {[%clk 0:02:41]}  Nf6 {[%clk 0:02:43]} 15. dxc5 {[%clk 0:02:31]}  dxc5 {[%clk 0:02:40]} 16. a5 {[%clk 0:02:25]}  Nxe4 {[%clk 0:02:29]} 17. Nxe4 {[%clk 0:02:23]}  Bxe4 {[%clk 0:02:28]} 18. Qxd8 {[%clk 0:02:21]}  Raxd8 {[%clk 0:02:26]} 19. Rxd8 {[%clk 0:02:20]}  Rxd8 {[%clk 0:02:25]} 20. axb6 {[%clk 0:02:21]}  Rc8 {[%clk 0:02:04]} 21. Bxa6 {[%clk 0:02:15]}  Ra8 {[%clk 0:01:58]} 22. b7 {[%clk 0:02:06]}  Rb8 {[%clk 0:01:57]} 23. Bf4 {[%clk 0:02:06]}  Bxb7 {[%clk 0:01:51]} 24. Bxb8 {[%clk 0:02:03]}  Bxa6 {[%clk 0:01:51]} 25. Ne5 {[%clk 0:02:01]}  Bxe5 {[%clk 0:01:46]} 26. Bxe5 {[%clk 0:02:00]}  Nc6 {[%clk 0:01:42]} 27. Bc3 {[%clk 0:02:00]}  Kg8 {[%clk 0:01:36]} 28. Ra1 {[%clk 0:01:58]}  Bc8 {[%clk 0:01:29]} 29. Ra8 {[%clk 0:01:54]} 1-0


[Site "https://www.chess.com"]

[Event "Titled Tuesday Blitz July 27 2021"]
[White "Lee, Qing Aun"]
[Black "Vasquez Schroeder, Rodrigo"]
[WhiteFideId "5804167"]
[BlackFideId "3400042"]
[WhiteElo "2023"]
[BlackElo "2572"]
[Result "1-0"]
[Round "08"]
[TimeControl "180+1"]
[Date "2021.07.27"]
[WhiteClock "0:01:26"]
[BlackClock "0:01:51"]

1. e4 {[%clk 0:03:00]}  c5 {[%clk 0:02:58]} 2. Nf3 {[%clk 0:03:00]}  d6 {[%clk 0:02:58]} 3. d4 {[%clk 0:03:01]}  cxd4 {[%clk 0:02:58]} 4. Nxd4 {[%clk 0:03:02]}  Nf6 {[%clk 0:02:58]} 5. Nc3 {[%clk 0:03:02]}  a6 {[%clk 0:02:59]} 6. Bg5 {[%clk 0:03:02]}  e6 {[%clk 0:02:59]} 7. f4 {[%clk 0:03:01]}  Nbd7 {[%clk 0:02:59]} 8. Qf3 {[%clk 0:03:01]}  Qc7 {[%clk 0:03:00]} 9. O-O-O {[%clk 0:03:00]}  b5 {[%clk 0:03:00]} 10. a3 {[%clk 0:02:59]}  Bb7 {[%clk 0:02:58]} 11. g4 {[%clk 0:02:58]}  Qb6 {[%clk 0:02:51]} 12. Bxf6 {[%clk 0:02:49]}  Nxf6 {[%clk 0:02:50]} 13. g5 {[%clk 0:02:48]}  Nd7 {[%clk 0:02:50]} 14. f5 {[%clk 0:02:46]}  Ne5 {[%clk 0:02:46]} 15. Qg3 {[%clk 0:02:36]}  exf5 {[%clk 0:02:43]} 16. Nxf5 {[%clk 0:02:32]}  b4 {[%clk 0:02:39]} 17. axb4 {[%clk 0:02:29]}  Qxb4 {[%clk 0:02:39]} 18. Nd5 {[%clk 0:02:23]}  Bxd5 {[%clk 0:02:31]} 19. Rxd5 {[%clk 0:02:12]}  Rb8 {[%clk 0:02:14]} 20. Rxe5+ {[%clk 0:02:07]}  dxe5 {[%clk 0:02:14]} 21. Qxe5+ {[%clk 0:02:06]}  Kd7 {[%clk 0:02:14]} 22. Bxa6 {[%clk 0:01:46]}  Kc6 {[%clk 0:02:00]} 23. Nd4+ {[%clk 0:01:31]}  Kd7 {[%clk 0:01:51]} 24. Bb5+ {[%clk 0:01:30]}  Kc8 {[%clk 0:01:51]} 25. Qe8+ {[%clk 0:01:26]} 1-0


[Site "https://www.chess.com"]

[Event "Titled Tuesday Blitz July 27 2021"]
[White "Maevsky, Nikolay"]
[Black "Luo, Terry"]
[WhiteFideId "4198220"]
[BlackFideId "30931045"]
[WhiteElo "2213"]
[BlackElo "2024"]
[Result "1/2-1/2"]
[Round "08"]
[TimeControl "180+1"]
[Date "2021.07.27"]
[WhiteClock "0:00:05"]
[BlackClock "0:00:18"]

1. d4 {[%clk 0:03:00]}  Nf6 {[%clk 0:02:58]} 2. Nf3 {[%clk 0:03:00]}  g6 {[%clk 0:02:59]} 3. c4 {[%clk 0:03:00]}  Bg7 {[%clk 0:03:00]} 4. Nc3 {[%clk 0:03:01]}  O-O {[%clk 0:03:01]} 5. e4 {[%clk 0:03:01]}  d6 {[%clk 0:03:01]} 6. Be2 {[%clk 0:03:02]}  e5 {[%clk 0:03:01]} 7. d5 {[%clk 0:03:02]}  a5 {[%clk 0:03:00]} 8. Bg5 {[%clk 0:03:02]}  h6 {[%clk 0:03:01]} 9. Bh4 {[%clk 0:03:02]}  Na6 {[%clk 0:03:00]} 10. Nd2 {[%clk 0:03:01]}  Qe8 {[%clk 0:02:53]} 11. f3 {[%clk 0:03:00]}  h5 {[%clk 0:02:49]} 12. O-O {[%clk 0:02:59]}  Nh7 {[%clk 0:02:49]} 13. a3 {[%clk 0:02:57]}  Bd7 {[%clk 0:02:49]} 14. Nb5 {[%clk 0:02:52]}  Bh6 {[%clk 0:02:46]} 15. Bf2 {[%clk 0:02:51]}  Qe7 {[%clk 0:02:28]} 16. Qc2 {[%clk 0:02:42]}  h4 {[%clk 0:02:25]} 17. Kh1 {[%clk 0:02:41]}  Bf4 {[%clk 0:02:19]} 18. Rfd1 {[%clk 0:02:19]}  Qg5 {[%clk 0:02:18]} 19. Nf1 {[%clk 0:02:16]}  Nf6 {[%clk 0:02:00]} 20. Qc3 {[%clk 0:01:57]}  Kg7 {[%clk 0:01:57]} 21. b4 {[%clk 0:01:46]}  Nh5 {[%clk 0:01:51]} 22. Qe1 {[%clk 0:01:42]}  Ng3+ {[%clk 0:01:25]} 23. Nxg3 {[%clk 0:01:00]}  hxg3 {[%clk 0:01:23]} 24. Bxg3 {[%clk 0:01:00]}  axb4 {[%clk 0:01:14]} 25. Bxf4 {[%clk 0:00:57]}  Qxf4 {[%clk 0:01:14]} 26. axb4 {[%clk 0:00:55]}  Rh8 {[%clk 0:01:12]} 27. g3 {[%clk 0:00:53]}  Qh6 {[%clk 0:01:08]} 28. Qf2 {[%clk 0:00:45]}  Bxb5 {[%clk 0:01:06]} 29. cxb5 {[%clk 0:00:44]}  Nxb4 {[%clk 0:01:06]} 30. Bf1 {[%clk 0:00:35]}  c5 {[%clk 0:00:38]} 31. bxc6 {[%clk 0:00:31]}  bxc6 {[%clk 0:00:39]} 32. Rxa8 {[%clk 0:00:28]}  Rxa8 {[%clk 0:00:38]} 33. dxc6 {[%clk 0:00:28]}  Nxc6 {[%clk 0:00:37]} 34. Rxd6 {[%clk 0:00:25]}  Nd4 {[%clk 0:00:38]} 35. f4 {[%clk 0:00:22]}  Ra1 {[%clk 0:00:19]} 36. fxe5 {[%clk 0:00:17]}  Ne6 {[%clk 0:00:20]} 37. Qf6+ {[%clk 0:00:13]}  Kg8 {[%clk 0:00:20]} 38. Qf2 {[%clk 0:00:06]}  Qc1 {[%clk 0:00:19]} 39. Kg2 {[%clk 0:00:06]}  Qb1 {[%clk 0:00:17]} 40. Rd2 {[%clk 0:00:06]}  Qxe4+ {[%clk 0:00:17]} 41. Kg1 {[%clk 0:00:05]}  Qxe5 {[%clk 0:00:17]} 42. Qe2 {[%clk 0:00:04]}  Qc5+ {[%clk 0:00:17]} 43. Qf2 {[%clk 0:00:04]}  Qe5 {[%clk 0:00:17]} 44. Qe2 {[%clk 0:00:04]}  Qc5+ {[%clk 0:00:17]} 45. Qf2 {[%clk 0:00:05]}  Qe5 {[%clk 0:00:18]} 1/2-1/2


[Site "https://www.chess.com"]

[Event "Titled Tuesday Blitz July 27 2021"]
[White "Makhnev, Denis"]
[Black "Gokerkan, Cem Kaan"]
[WhiteFideId "13707647"]
[BlackFideId "6336760"]
[WhiteElo "2537"]
[BlackElo "2361"]
[Result "1-0"]
[Round "08"]
[TimeControl "180+1"]
[Date "2021.07.27"]
[WhiteClock "0:00:15"]
[BlackClock "0:00:02"]

1. d4 {[%clk 0:03:00]}  Nf6 {[%clk 0:02:59]} 2. c4 {[%clk 0:03:01]}  e6 {[%clk 0:03:00]} 3. Nf3 {[%clk 0:03:01]}  d5 {[%clk 0:03:00]} 4. g3 {[%clk 0:03:01]}  Be7 {[%clk 0:02:59]} 5. Bg2 {[%clk 0:03:02]}  O-O {[%clk 0:03:00]} 6. O-O {[%clk 0:03:03]}  dxc4 {[%clk 0:03:00]} 7. Qc2 {[%clk 0:03:04]}  a6 {[%clk 0:03:00]} 8. a4 {[%clk 0:03:04]}  Bd7 {[%clk 0:03:01]} 9. Qxc4 {[%clk 0:03:05]}  Bc6 {[%clk 0:03:01]} 10. Bf4 {[%clk 0:03:05]}  Bd6 {[%clk 0:03:01]} 11. Qc1 {[%clk 0:03:06]}  Nbd7 {[%clk 0:03:00]} 12. Nc3 {[%clk 0:03:05]}  Ne4 {[%clk 0:02:58]} 13. Rd1 {[%clk 0:03:05]}  Ndf6 {[%clk 0:02:51]} 14. Be5 {[%clk 0:03:00]}  h6 {[%clk 0:02:46]} 15. Bxf6 {[%clk 0:02:55]}  Qxf6 {[%clk 0:02:35]} 16. Nxe4 {[%clk 0:02:53]}  Bxe4 {[%clk 0:02:35]} 17. Ne1 {[%clk 0:02:54]}  Bxg2 {[%clk 0:02:34]} 18. Kxg2 {[%clk 0:02:54]}  Rac8 {[%clk 0:02:33]} 19. Nf3 {[%clk 0:02:53]}  c5 {[%clk 0:02:28]} 20. d5 {[%clk 0:02:53]}  c4 {[%clk 0:02:24]} 21. Qc2 {[%clk 0:02:47]}  c3 {[%clk 0:01:51]} 22. Rab1 {[%clk 0:02:45]}  exd5 {[%clk 0:01:35]} 23. Rxd5 {[%clk 0:02:41]}  Qe6 {[%clk 0:01:27]} 24. Rbd1 {[%clk 0:02:33]}  cxb2 {[%clk 0:01:17]} 25. Qxb2 {[%clk 0:02:31]}  Bc5 {[%clk 0:01:13]} 26. Qe5 {[%clk 0:01:32]}  Qc6 {[%clk 0:00:44]} 27. Qf4 {[%clk 0:01:28]}  Rfe8 {[%clk 0:00:39]} 28. e3 {[%clk 0:01:28]}  b6 {[%clk 0:00:37]} 29. h4 {[%clk 0:01:27]}  a5 {[%clk 0:00:36]} 30. h5 {[%clk 0:01:27]}  Qe6 {[%clk 0:00:30]} 31. Rd7 {[%clk 0:01:10]}  Re7 {[%clk 0:00:26]} 32. Rxe7 {[%clk 0:01:06]}  Qxe7 {[%clk 0:00:26]} 33. Ne5 {[%clk 0:00:45]}  Re8 {[%clk 0:00:27]} 34. Rd5 {[%clk 0:00:36]}  Qe6 {[%clk 0:00:27]} 35. e4 {[%clk 0:00:33]}  f6 {[%clk 0:00:28]} 36. Nf3 {[%clk 0:00:24]}  Qxe4 {[%clk 0:00:27]} 37. Qd2 {[%clk 0:00:23]}  Qxa4 {[%clk 0:00:25]} 38. Rd7 {[%clk 0:00:20]}  Qe4 {[%clk 0:00:23]} 39. Ra7 {[%clk 0:00:20]}  Kh8 {[%clk 0:00:21]} 40. Qd7 {[%clk 0:00:18]}  Re7 {[%clk 0:00:17]} 41. Qc8+ {[%clk 0:00:18]}  Kh7 {[%clk 0:00:16]} 42. Ra8 {[%clk 0:00:18]}  Qxa8 {[%clk 0:00:10]} 43. Qxa8 {[%clk 0:00:19]}  g6 {[%clk 0:00:07]} 44. hxg6+ {[%clk 0:00:17]}  Kxg6 {[%clk 0:00:08]} 45. Nh4+ {[%clk 0:00:17]}  Kf7 {[%clk 0:00:08]} 46. Qd5+ {[%clk 0:00:18]}  Ke8 {[%clk 0:00:07]} 47. f4 {[%clk 0:00:17]}  a4 {[%clk 0:00:07]} 48. Nf5 {[%clk 0:00:17]}  Re2+ {[%clk 0:00:06]} 49. Kf3 {[%clk 0:00:17]}  Rf2+ {[%clk 0:00:07]} 50. Kg4 {[%clk 0:00:18]}  a3 {[%clk 0:00:07]} 51. Kh5 {[%clk 0:00:11]}  a2 {[%clk 0:00:07]} 52. Qa8+ {[%clk 0:00:09]}  Kd7 {[%clk 0:00:07]} 53. Kg6 {[%clk 0:00:09]}  Re2 {[%clk 0:00:07]} 54. Kf7 {[%clk 0:00:07]}  h5 {[%clk 0:00:04]} 55. Kxf6 {[%clk 0:00:05]}  Kc7 {[%clk 0:00:03]} 56. Kf7 {[%clk 0:00:05]}  b5 {[%clk 0:00:03]} 57. Qa5+ {[%clk 0:00:04]}  Kc6 {[%clk 0:00:03]} 58. Ng7 {[%clk 0:00:03]}  Bd4 {[%clk 0:00:02]} 59. Ne6 {[%clk 0:00:03]}  a1=Q {[%clk 0:00:02]} 60. Qc7+ {[%clk 0:00:03]}  Kd5 {[%clk 0:00:03]} 61. Qb7+ {[%clk 0:00:03]}  Kc4 {[%clk 0:00:04]} 62. Qc6+ {[%clk 0:00:03]}  Kd3 {[%clk 0:00:04]} 63. Qxb5+ {[%clk 0:00:04]}  Kd2 {[%clk 0:00:04]} 64. Qd5 {[%clk 0:00:03]}  Kd3 {[%clk 0:00:04]} 65. f5 {[%clk 0:00:03]}  Qc3 {[%clk 0:00:04]} 66. Qf3+ {[%clk 0:00:03]}  Kd2 {[%clk 0:00:04]} 67. Qd5 {[%clk 0:00:03]}  Kd3 {[%clk 0:00:03]} 68. Kg6 {[%clk 0:00:03]}  Qc4 {[%clk 0:00:03]} 69. Nf4+ {[%clk 0:00:03]}  Kc3 {[%clk 0:00:03]} 70. Qxc4+ {[%clk 0:00:04]}  Kxc4 {[%clk 0:00:02]} 71. Nxe2 {[%clk 0:00:05]}  Be5 {[%clk 0:00:01]} 72. f6 {[%clk 0:00:05]}  Kd3 {[%clk 0:00:02]} 73. f7 {[%clk 0:00:06]}  Bd6 {[%clk 0:00:03]} 74. Nf4+ {[%clk 0:00:06]}  Ke4 {[%clk 0:00:04]} 75. Nxh5 {[%clk 0:00:07]}  Kf3 {[%clk 0:00:03]} 76. g4 {[%clk 0:00:07]}  Kxg4 {[%clk 0:00:03]} 77. Nf6+ {[%clk 0:00:07]}  Kf4 {[%clk 0:00:03]} 78. Ne8 {[%clk 0:00:08]}  Bf8 {[%clk 0:00:03]} 79. Kf6 {[%clk 0:00:09]}  Ke4 {[%clk 0:00:02]} 80. Ng7 {[%clk 0:00:09]}  Kd5 {[%clk 0:00:02]} 81. Nf5 {[%clk 0:00:09]}  Kc6 {[%clk 0:00:01]} 82. Ne7+ {[%clk 0:00:10]}  Kd7 {[%clk 0:00:01]} 83. Ng6 {[%clk 0:00:11]}  Ba3 {[%clk 0:00:02]} 84. Ne5+ {[%clk 0:00:12]}  Kd8 {[%clk 0:00:02]} 85. Nf3 {[%clk 0:00:13]}  Kd7 {[%clk 0:00:02]} 86. Ne5+ {[%clk 0:00:13]}  Kd8 {[%clk 0:00:02]} 87. Ke6 {[%clk 0:00:14]}  Bc5 {[%clk 0:00:02]} 88. Nc6+ {[%clk 0:00:14]}  Kc7 {[%clk 0:00:02]} 89. Ne7 {[%clk 0:00:15]} 1-0


[Site "https://www.chess.com"]